bitfinex-derivatives/quotes_ETHF0:USTF0_20240930
["timestamp","ask_amount","ask_price","bid_price","bid_amount"]
[1727730117625,0.3675,2614.3,2614.1,3.59042]
[1727730117836,0.3675,2614.3,2614.1,3.2078]
[1727730118128,0.7501,2614.3,2614.1,3.2078]
[1727730118324,0.7501,2614.3,2614.0,0.38263]
[1727730118526,1.9901,2614.3,2613.9,0.99652576]
[1727730118827,1.9901,2614.3,2614.1,3.2078]
[1727730120416,0.38262,2614.2,2614.1,3.2078]
[1727730121222,1.12892,2614.2,2614.1,3.2078]
[1727730123534,1.12892,2614.2,2614.1,4.20432576]
[1727730124128,1.12892,2614.2,2614.1,0.99652576]
[1727730125530,0.38263,2614.1,2614.0,0.99652576]
[1727730125728,1.62263,2614.1,2614.0,2.50853885]
[1727730126638,1.62263,2614.1,2614.0,1.51201309]
[1727730127741,1.62263,2614.1,2614.0,2.50945748]
[1727730128142,1.62263,2614.1,2614.0,0.99744439]
[1727730128346,0.38263,2614.1,2614.0,0.99744439]
[1727730128536,1.62263,2614.1,2614.0,2.51003213]
[1727730128936,1.24,2614.1,2614.0,2.51003213]
[1727730130239,1.24,2614.1,2614.0,0.99744439]
[1727730130447,1.24,2614.1,2614.0,2.50929947]
[1727730130643,1.24,2614.1,2614.0,0.99744439]
[1727730130946,1.24,2614.1,2614.0,2.50929086]
[1727730131647,1.24,2614.1,2613.9,4.58789439]
[1727730132351,1.24,2614.1,2613.9,4.20524439]
[1727730132648,1.24,2614.1,2613.9,4.58790439]
[1727730134046,1.24,2614.1,2613.9,4.20524439]
[1727730134241,1.24,2614.1,2613.9,3.2078]
[1727730134441,0.3788,2614.0,2613.9,3.2078]
[1727730135048,0.3788,2614.0,2613.9,3.59046]
[1727730136148,0.3788,2614.0,2613.9,3.2078]
[1727730136744,0.3788,2614.0,2613.9,3.59046]
[1727730137346,2.0078,2614.2,2613.9,3.59046]
[1727730137552,2.39042,2614.2,2613.9,3.59046]
[1727730137848,2.39043,2614.2,2613.9,3.2078]
[1727730138051,0.38264,2614.1,2613.9,3.2078]
[1727730138253,1.62265,2614.0,2613.9,3.2078]
[1727730138449,0.38266,2613.9,2613.8,0.3707]
[1727730138746,0.38266,2613.9,2613.7,1.78224439]
[1727730138747,1.6116,2613.9,2613.7,1.78224439]
[1727730138949,2.39576,2613.9,2613.7,1.78224439]
[1727730139149,2.39576,2613.9,2613.7,0.7848]
[1727730139349,2.39576,2613.9,2613.7,1.78224439]
[1727730140043,2.0131,2613.9,2613.7,1.78224439]
[1727730140246,2.39576,2613.9,2613.7,1.37744439]
[1727730140441,0.3712,2613.8,2613.7,0.99744439]
[1727730142459,0.3712,2613.8,2613.7,2.89736928]
[1727730142749,0.3712,2613.8,2613.7,2.51467928]
[1727730143555,0.3712,2613.8,2613.7,3.01182215]
[1727730143957,0.3712,2613.8,2613.7,2.51572349]
[1727730143958,0.75388,2613.8,2613.7,2.51572349]
[1727730144155,0.75388,2613.8,2613.7,0.9984886]
[1727730144351,0.75388,2613.8,2613.7,2.51627085]
[1727730144551,0.75388,2613.8,2613.7,0.9984886]
[1727730145150,0.38269,2613.7,2613.6,1.3782886]
[1727730145451,1.62269,2613.7,2613.6,2.89596845]
[1727730145652,1.62269,2613.7,2613.6,1.3782886]
[1727730146554,1.24,2613.7,2613.6,1.3782886]
[1727730146959,1.62269,2613.7,2613.6,1.3782886]
[1727730147859,5.44909,2613.7,2613.6,0.9984886]
[1727730150160,5.0664,2613.7,2613.5,1.3673886]
[1727730150460,1.62269,2613.7,2613.5,1.3673886]
[1727730150663,0.3675,2613.6,2613.5,1.3673886]
[1727730150869,0.3675,2613.6,2613.5,2.88437442]
[1727730152474,0.3675,2613.6,2613.5,2.88417769]
[1727730153767,0.3675,2613.6,2613.5,0.3689]
[1727730155371,0.7502,2613.6,2613.5,0.3689]
[1727730158661,0.7502,2613.6,2613.4,0.7545]
[1727730158964,1.24,2613.5,2613.4,0.7545]
[1727730159168,0.3827,2613.7,2613.4,1.13723]
[1727730159463,1.6227,2613.7,2613.4,0.7545]
[1727730159687,0.38271,2613.6,2613.4,0.7545]
[1727730159864,1.24,2613.7,2613.4,0.7545]
[1727730159865,1.6227,2613.7,2613.4,0.7545]
[1727730160163,2.0293,2613.7,2613.4,0.7545]
[1727730160362,2.0293,2613.7,2613.4,1.7529886]
[1727730160670,0.38271,2613.6,2613.4,1.7529886]
[1727730161065,2.0293,2613.7,2613.4,1.7529886]
[1727730162373,1.6466,2613.7,2613.4,2.1357186]
[1727730162573,2.02929,2613.7,2613.5,0.9984886]
[1727730162974,1.6466,2613.7,2613.5,0.9984886]
[1727730163175,2.02929,2613.7,2613.5,0.9984886]
[1727730163376,1.6466,2613.7,2613.5,0.9984886]
[1727730164374,2.02929,2613.7,2613.5,0.9984886]
[1727730164874,2.02929,2613.7,2613.6,0.3991]
[1727730177379,2.02929,2613.7,2613.6,1.3975886]
[1727730180679,2.02929,2613.7,2613.6,0.9984886]
[1727730180882,2.41019,2613.7,2613.6,0.9984886]
[1727730182082,2.41019,2613.7,2613.6,2.51855224]
[1727730183184,2.41019,2613.7,2613.6,1.52006364]
[1727730183979,2.41019,2613.7,2613.6,0.99994361]
[1727730188890,2.41019,2613.7,2613.6,2.52107923]
[1727730190495,2.41019,2613.7,2613.6,1.52113562]
[1727730190693,2.41019,2613.7,2613.6,2.52185842]
[1727730191193,2.41019,2613.7,2613.6,1.52113562]
[1727730191497,2.41019,2613.7,2613.6,1.52140423]
[1727730191894,2.41019,2613.7,2613.6,3.01599149]
[1727730195297,2.41019,2613.7,2613.6,1.52140423]
[1727730196597,2.41019,2613.7,2613.6,1.52118884]
[1727730199093,2.41019,2613.7,2613.6,3.02238333]
[1727730201600,2.41019,2613.7,2613.6,3.02290035]
[1727730202407,2.02929,2613.7,2613.6,3.02290035]
[1727730204914,2.02929,2613.7,2613.6,1.52170586]
[1727730205110,2.02929,2613.7,2613.6,3.02326375]
[1727730205408,2.02929,2613.7,2613.6,1.52170586]
[1727730206105,2.02929,2613.7,2613.6,3.02330454]
[1727730206506,2.02929,2613.7,2613.6,1.52170586]
[1727730206906,2.02929,2613.7,2613.6,1.0010489]
[1727730207303,1.24,2613.7,2613.6,1.0010489]
[1727730207813,1.62269,2613.7,2613.6,2.52291192]
[1727730208108,1.24,2613.7,2613.6,2.9056105]
[1727730208307,1.24,2613.7,2613.6,3.02343495]
[1727730209909,5.04377041,2614.2,2613.6,3.40613495]
[1727730209910,0.95662,2614.0,2613.6,3.40613495]
[1727730210221,1.24,2613.7,2613.6,1.50157335]
[1727730210516,1.24,2613.7,2613.6,3.02310905]
[1727730211315,1.62269,2613.7,2613.6,3.02310905]
[1727730213420,1.24,2613.7,2613.6,3.02310905]
[1727730214010,1.24,2613.7,2613.6,3.51431872]
[1727730214518,1.62269,2613.7,2613.6,3.51431872]
[1727730215219,1.24,2613.7,2613.6,3.51431872]
[1727730216617,1.62269,2613.7,2613.6,3.51431872]
[1727730217022,1.62269,2613.7,2613.6,3.51423146]
[1727730217522,1.24,2613.7,2613.6,3.51423146]
[1727730218520,1.62269,2613.7,2613.6,3.51423146]
[1727730219516,1.24,2613.7,2613.6,3.51423146]
[1727730219912,1.62269,2613.7,2613.6,3.51423146]
[1727730220513,1.24,2613.7,2613.6,3.51423146]
[1727730222224,1.24,2613.7,2613.6,3.51374658]
[1727730222616,1.24,2613.7,2613.6,3.88294658]
[1727730222821,1.62269,2613.7,2613.6,3.88294658]
[1727730224221,1.24,2613.7,2613.6,3.88294658]
[1727730224424,1.24,2613.7,2613.6,1.89016356]
[1727730225525,1.62269,2613.7,2613.6,1.89016356]
[1727730225722,1.99369,2613.7,2613.6,1.89016356]
[1727730226630,0.371,2613.7,2613.6,1.89016356]
[1727730226828,1.611,2613.7,2613.6,1.89016356]
[1727730227122,1.99369,2613.7,2613.6,1.89016356]
[1727730227330,1.99369,2613.7,2613.6,1.8901806]
[1727730227726,1.99369,2613.7,2613.6,2.2915806]
[1727730229127,1.99369,2613.7,2613.6,3.2924736]
[1727730230216,1.99369,2613.7,2613.6,1.77122848]
[1727730231519,1.99369,2613.7,2613.6,3.29263893]
[1727730231717,1.99369,2613.7,2613.6,1.77122848]
[1727730232231,1.99369,2613.7,2613.6,3.29260262]
[1727730232530,1.99369,2613.7,2613.6,3.29264494]
[1727730233028,1.611,2613.7,2613.6,3.29264494]
[1727730233417,1.99369,2613.7,2613.6,1.77122848]
[1727730234222,1.611,2613.7,2613.6,1.77122848]
[1727730234927,1.99369,2613.7,2613.6,1.77122848]
[1727730236227,1.611,2613.7,2613.6,2.29208151]
[1727730236930,1.611,2613.7,2613.6,3.79328965]
[1727730237430,1.611,2613.7,2613.6,2.29208151]
[1727730237731,1.611,2613.7,2613.6,2.29208412]
[1727730238521,1.611,2613.7,2613.6,3.79330426]
[1727730238731,1.611,2613.7,2613.6,2.29208412]
[1727730239836,1.99369,2613.7,2613.6,2.29208412]
[1727730240331,1.611,2613.7,2613.6,2.29208412]
[1727730241033,1.611,2613.7,2613.6,3.79336686]
[1727730241230,1.611,2613.7,2613.6,2.29215346]
[1727730243837,0.75369,2613.7,2613.6,2.29215346]
[1727730244229,0.371,2613.7,2613.6,1.77156976]
[1727730245138,0.371,2613.7,2613.6,3.29335155]
[1727730246329,0.75369,2613.7,2613.6,1.77156976]
[1727730246534,0.371,2613.7,2613.6,3.2934778]
[1727730247731,0.75369,2613.7,2613.6,3.2934778]
[1727730247932,0.371,2613.7,2613.6,3.2934778]
[1727730248138,0.75369,2613.7,2613.6,3.2934778]
[1727730248742,0.371,2613.7,2613.6,3.2934778]
[1727730249333,0.371,2613.7,2613.6,2.5228778]
[1727730249334,4.58009,2613.7,2613.6,2.5228778]
[1727730249633,4.58009,2613.7,2613.2,1.00096976]
[1727730249634,0.38275,2613.3,2613.2,1.00096976]
[1727730249828,0.38276,2613.2,2613.1,1.00096976]
[1727730250041,0.38278,2613.1,2613.0,1.00096976]
[1727730250234,0.75258,2613.1,2613.0,1.00096976]
[1727730250445,0.38279,2613.0,2612.9,1.00096976]
[1727730251144,0.3698,2613.1,2612.9,1.00096976]
[1727730251339,0.75259,2613.1,2613.0,1.00096976]
[1727730251540,0.3698,2613.1,2612.9,1.00096976]
[1727730251743,0.38279,2613.0,2612.9,1.00096976]
[1727730252037,0.38279,2613.0,2612.8,1.00096976]
[1727730253037,3.5776,2613.1,2612.8,1.00096976]
[1727730253038,3.96039,2613.1,2612.8,1.00096976]
[1727730254436,3.96039,2613.1,2612.7,2.13640976]
[1727730254636,0.75259,2613.1,2612.7,2.13640976]
[1727730255140,0.75259,2613.1,2612.8,1.00096976]
[1727730255442,0.38279,2613.0,2612.7,2.13640976]
[1727730255946,0.75259,2613.1,2612.7,2.13640976]
[1727730256241,0.3828,2613.0,2612.8,1.00096976]
[1727730256445,0.3698,2613.1,2612.8,1.00096976]
[1727730256646,0.75259,2613.1,2612.8,1.00096976]
[1727730256842,0.3698,2613.1,2612.8,1.00096976]
[1727730257142,0.75258,2613.1,2612.8,1.38377976]
[1727730257443,0.3698,2613.1,2612.9,0.3828]
[1727730257847,0.3698,2613.1,2613.0,0.4019]
[1727730258747,0.3698,2613.1,2613.0,0.774]
[1727730260447,1.33885,2613.4,2613.0,0.774]
[1727730260651,0.76156,2613.3,2613.1,0.4039]
[1727730264544,0.3788,2613.3,2613.1,0.4039]
[1727730264847,0.38276,2613.2,2613.1,0.4039]
[1727730265646,0.3788,2613.3,2613.1,0.4039]
[1727730266243,0.76156,2613.3,2613.1,0.4039]
[1727730267654,0.38276,2613.2,2613.1,0.4039]
[1727730273045,0.76156,2613.3,2613.1,0.4039]
[1727730273246,3.6097,2613.5,2613.1,0.4039]
[1727730273247,3.2078,2613.5,2613.1,0.4039]
[1727730273452,10.07214912,2613.7,2613.1,1.40486976]
[1727730273453,10.06688912,2613.7,2613.1,1.40486976]
[1727730273655,0.3827,2613.6,2613.2,1.38372976]
[1727730273854,0.38271,2613.6,2613.3,0.38275]
[1727730274154,0.38271,2613.6,2613.4,0.3923]
[1727730274346,0.38271,2613.6,2613.5,0.3849]
[1727730276164,9.86923912,2613.7,2613.5,0.3849]
[1727730276658,9.86923912,2613.7,2613.6,0.3935]
[1727730280154,0.75909,2613.7,2613.6,0.3935]
[1727730317298,0.75909,2613.7,2613.6,1.39446976]
[1727730319388,0.75909,2613.7,2613.6,2.91546983]
[1727730319582,0.75909,2613.7,2613.6,0.3935]
[1727730326592,0.75909,2613.7,2613.6,3.41705024]
[1727730328896,0.75909,2613.7,2613.6,2.91685699]
[1727730329494,0.75909,2613.7,2613.6,1.9155956]
[1727730331704,0.75909,2613.7,2613.6,3.41705024]
[1727730332310,0.75909,2613.7,2613.6,1.9155956]
[1727730332506,0.75909,2613.7,2613.6,3.41705024]
[1727730334104,0.75909,2613.7,2613.6,3.41747951]
[1727730334495,0.75909,2613.7,2613.6,0.3935]
[1727730341511,0.75909,2613.7,2613.6,3.41723953]
[1727730344612,0.75909,2613.7,2613.6,3.41726697]
[1727730349715,0.75909,2613.7,2613.6,0.3935]
[1727730356615,0.75909,2613.7,2613.6,3.41781428]
[1727730359817,0.75909,2613.7,2613.6,3.41758465]
[1727730360611,0.95681,2613.5,2613.3,1.00213859]
[1727730360812,3.8264,2613.6,2612.9,1.99278302]
[1727730360813,0.38279,2613.0,2612.9,1.99278302]
[1727730361020,0.38279,2613.0,2612.9,1.51579021]
[1727730362222,1.14889,2613.1,2612.9,1.51579021]
[1727730362423,1.14889,2613.1,2612.8,1.1732]
[1727730362718,1.14889,2613.1,2612.9,1.51428617]
[1727730363024,1.14889,2613.1,2612.8,1.1732]
[1727730363219,1.14889,2613.1,2612.9,1.51418521]
[1727730363423,1.14889,2613.1,2612.8,1.1732]
[1727730363621,1.14889,2613.1,2612.9,1.5141452]
[1727730363914,1.14889,2613.1,2612.8,1.1732]
[1727730364116,0.38279,2613.0,2612.9,1.51377474]
[1727730364318,0.7661,2613.1,2612.9,1.51377474]
[1727730364509,0.38279,2613.0,2612.8,1.1732]
[1727730365115,1.14889,2613.1,2612.8,1.55602]
[1727730365626,0.38279,2613.0,2612.8,1.1732]
[1727730368123,0.38279,2613.0,2612.8,1.55602]
[1727730368819,13.65786779,2613.4,2612.8,1.1732]
[1727730369026,19.12577,2615.0,2613.3,0.38274]
[1727730369027,3.2078,2613.7,2613.3,0.38274]
[1727730369214,3.2078,2613.7,2613.0,4.16476]
[1727730369215,0.38272,2613.5,2613.4,1.1392]
[1727730369723,0.38272,2613.6,2613.4,1.1392]
[1727730369913,1.35188,2613.9,2613.4,1.1392]
[1727730370118,0.3827,2613.7,2613.4,1.1392]
[1727730370817,1.35187,2613.9,2613.4,1.1392]
[1727730371020,0.77786,2613.9,2613.4,1.1392]
[1727730371225,3.5785,2614.0,2613.4,1.1392]
[1727730371622,1.62268,2613.8,2613.4,2.3792]
[1727730371830,1.62268,2613.8,2613.5,1.51125432]
[1727730372030,1.24,2613.8,2613.4,2.3792]
[1727730372324,1.62268,2613.8,2613.5,1.51129063]
[1727730372530,0.38268,2613.8,2613.4,2.3792]
[1727730372828,1.62268,2613.8,2613.5,1.51119806]
[1727730373036,1.62268,2613.8,2613.4,2.3792]
[1727730373326,1.62268,2613.8,2613.5,1.51111169]
[1727730373624,0.38268,2613.8,2613.4,2.3792]
[1727730373828,1.24,2613.7,2613.5,1.51107733]
[1727730374029,1.24,2613.6,2613.4,1.1392]
[1727730374425,1.6324,2613.6,2613.4,1.1392]
[1727730374730,0.38274,2613.4,2613.0,2.37557302]
[1727730374929,1.24,2613.2,2613.1,1.8823922]
[1727730375929,1.62276,2613.2,2613.1,1.8823922]
[1727730376128,1.6315,2613.2,2613.0,0.7652]
[1727730376330,0.38278,2613.1,2613.0,0.7652]
[1727730379329,1.6315,2613.2,2612.9,3.2078]
[1727730379526,1.62279,2613.0,2612.9,3.2078]
[1727730381030,1.62279,2613.0,2612.9,3.5949]
[1727730384138,1.62279,2613.0,2612.9,0.3871]
[1727730386730,0.38282,2612.8,2612.7,3.2078]
[1727730386934,1.62282,2612.8,2612.7,3.2078]
[1727730390036,1.24,2612.8,2612.7,3.2078]
[1727730390435,2.00772,2612.8,2612.7,3.2078]
[1727730390644,1.6249,2612.8,2612.7,3.2078]
[1727730391647,2.00772,2612.8,2612.7,3.2078]
[1727730392950,2.00773,2612.8,2612.6,0.3879]
[1727730395149,0.38284,2612.7,2612.6,0.3879]
[1727730395354,1.6249,2612.8,2612.6,0.3879]
[1727730395549,2.00773,2612.8,2612.6,0.3879]
[1727730396351,1.6249,2612.8,2612.6,0.3879]
[1727730396852,0.38284,2612.7,2612.6,0.3879]
[1727730397853,3.2078,2613.0,2612.6,0.3879]
[1727730397854,3.2078,2613.0,2612.6,5.4551]
[1727730398056,0.28179876,2613.7,2613.1,0.38277]
[1727730398057,0.3842,2613.3,2613.1,0.38277]
[1727730398254,1.6242,2613.3,2613.2,1.1523]
[1727730399560,2.00696,2613.3,2613.0,0.38279]
[1727730399755,1.24,2613.1,2613.0,0.38279]
[1727730402565,0.66541631,2613.1,2613.0,0.38279]
[1727730402764,0.76695,2613.3,2612.9,1.1698]
[1727730402765,0.3842,2613.3,2612.9,1.1698]
[1727730402970,1.24,2613.2,2613.1,0.38278]
[1727730403463,1.24,2613.2,2613.0,0.38278]
[1727730403863,1.24,2613.2,2612.9,1.1698]
[1727730404058,1.24,2613.2,2613.1,0.38278]
[1727730405053,1.24,2613.2,2612.9,1.1698]
[1727730405054,1.24,2613.2,2613.0,0.38278]
[1727730405261,1.24,2613.2,2613.1,0.38278]
[1727730406467,1.24,2613.2,2613.0,0.38278]
[1727730407360,1.24,2613.2,2612.9,1.1698]
[1727730407566,1.24,2613.2,2613.0,0.38279]
[1727730408172,1.24,2613.2,2613.1,0.38278]
[1727730408367,1.24,2613.2,2613.0,0.38278]
[1727730408962,1.24,2613.2,2613.1,0.38278]
[1727730411270,1.24,2613.2,2612.9,4.3776]
[1727730411472,1.24,2613.2,2612.9,1.1698]
[1727730411473,1.24,2613.1,2612.9,1.1698]
[1727730411657,1.62278,2613.1,2612.9,1.5526]
[1727730411967,1.24,2613.1,2612.9,1.5526]
[1727730412967,1.62279,2613.1,2612.9,1.5526]
[1727730413866,0.38279,2613.0,2612.9,1.1698]
[1727730414171,0.76809,2613.0,2612.9,1.1698]
[1727730414773,0.3853,2613.0,2612.9,1.55261]
[1727730418167,0.76809,2613.0,2612.9,1.1698]
[1727730418373,0.76809,2613.0,2612.6,5.20058302]
[1727730418374,0.38281,2612.9,2612.6,5.20058302]
[1727730418577,1.24,2612.7,2612.6,4.37035]
[1727730418776,1.24,2612.7,2612.6,5.49981826]
[1727730419072,1.6266,2612.7,2612.6,5.88266826]
[1727730420677,1.6266,2612.7,2612.6,7.38535448]
[1727730422573,1.24,2612.8,2612.7,0.38284]
[1727730422769,1.24,2612.8,2612.7,3.39840819]
[1727730422963,0.95699,2613.0,2612.7,3.39840819]
[1727730422964,4.94065,2613.2,2612.7,3.01556819]
[1727730423180,1.24,2613.0,2612.8,3.39820433]
[1727730423475,1.24,2613.0,2612.9,2.27791578]
[1727730423779,1.24,2613.0,2612.9,2.66631578]
[1727730424079,1.24,2613.0,2612.9,1.15351]
[1727730424776,0.76948,2613.2,2612.9,1.15351]
[1727730424777,1.24,2613.2,2612.9,10.82105284]
[1727730424980,1.24,2613.2,2613.1,0.38278]
[1727730425479,0.3978,2613.3,2613.1,0.38278]
[1727730425777,1.24,2613.3,2613.1,0.38277]
[1727730426088,1.24,2613.3,2613.2,0.371]
[1727730429272,0.3978,2613.4,2613.2,0.371]
[1727730429472,3.59048,2613.8,2613.2,3.5788]
[1727730429678,10.0659759,2614.0,2613.6,0.38269]
[1727730429679,0.3905,2613.9,2613.6,0.38269]
[1727730429883,0.3905,2613.9,2613.7,0.7817]
[1727730429884,1.6305,2613.9,2613.7,0.7817]
[1727730430078,2.01317,2613.9,2613.7,0.7817]
[1727730431078,1.6305,2613.9,2613.7,0.7817]
[1727730432682,2.01317,2613.9,2613.7,0.7817]
[1727730433282,1.6305,2613.9,2613.7,0.7817]
[1727730433578,2.01317,2613.9,2613.7,0.7817]
[1727730434087,1.6305,2613.9,2613.7,0.7817]
[1727730434387,2.01317,2613.9,2613.7,0.7817]
[1727730436488,2.01316,2613.9,2613.7,0.7817]
[1727730437390,1.6305,2613.9,2613.7,0.7817]
[1727730437590,2.01316,2613.9,2613.7,0.7817]
[1727730437891,1.6305,2613.9,2613.7,0.7817]
[1727730438193,0.3905,2613.9,2613.7,0.7817]
[1727730438392,1.24,2613.8,2613.7,0.7817]
[1727730441990,0.3905,2613.9,2613.7,0.7817]
[1727730442191,1.24,2613.8,2613.7,0.7817]
[1727730446294,1.24,2613.8,2613.7,4.6073]
[1727730448603,1.62268,2613.8,2613.7,4.6073]
[1727730448986,1.24,2613.8,2613.7,4.6073]
[1727730449199,1.62268,2613.8,2613.7,4.6073]
[1727730449700,1.24,2613.8,2613.7,4.6073]
[1727730450495,1.62267,2613.9,2613.7,4.6073]
[1727730450696,1.62267,2613.9,2613.7,0.7817]
[1727730451299,1.24,2613.9,2613.7,0.7817]
[1727730451603,1.24,2613.9,2613.7,1.16439]
[1727730451902,1.24,2613.9,2613.7,0.7817]
[1727730452097,1.24,2613.9,2613.7,1.16439]
[1727730452892,1.62266,2613.9,2613.7,1.16439]
[1727730453099,1.62266,2613.9,2613.7,4.37219]
[1727730454002,1.62266,2613.9,2613.7,1.16439]
[1727730454205,0.38268,2613.8,2613.7,4.37219]
[1727730454592,0.38268,2613.8,2613.7,8.58399]
[1727730462616,2.19663,2614.0,2613.7,8.2013]
[1727730462803,2.19663,2614.0,2613.8,0.38266]
[1727730462804,0.38267,2613.9,2613.8,0.38266]
[1727730465002,0.38267,2613.9,2613.8,4.20826]
[1727730465205,0.38267,2613.9,2613.8,0.38266]
[1727730468408,0.38267,2613.9,2613.8,4.20826]
[1727730468610,0.38267,2613.9,2613.8,7.22054161]
[1727730468811,1.62266,2614.0,2613.9,0.38266]
[1727730470709,1.62266,2614.0,2613.9,1.8936661]
[1727730471120,1.24,2614.0,2613.9,1.8936661]
[1727730472607,1.24,2614.0,2613.9,3.39625465]
[1727730476317,1.24,2614.0,2613.9,1.8936661]
[1727730477322,1.24,2614.0,2613.9,0.38266]
[1727730477819,2.00374,2614.1,2613.9,0.38266]
[1727730480812,2.00374,2614.1,2613.9,1.38506576]
[1727730481618,1.6211,2614.1,2613.9,1.38506576]
[1727730481817,1.6211,2614.1,2613.9,4.59286576]
[1727730482224,1.6211,2614.1,2613.9,4.21020576]
[1727730482528,1.6211,2614.1,2614.0,0.38265]
[1727730483321,0.3811,2614.1,2614.0,0.38265]
[1727730483811,0.3811,2614.1,2614.0,0.75925]
[1727730484322,0.3811,2614.1,2614.0,3.27343242]
[1727730484817,0.3811,2614.1,2614.0,2.27102666]
[1727730485315,0.3811,2614.1,2614.0,3.27258482]
[1727730485823,1.6211,2614.1,2614.0,2.51323379]
[1727730486416,0.3811,2614.1,2614.0,2.51323379]
[1727730486617,0.3811,2614.1,2614.0,3.39835721]
[1727730488422,0.3811,2614.1,2614.0,1.89442666]
[1727730488623,0.3811,2614.1,2614.0,3.88720968]
[1727730490613,0.3949,2614.3,2614.0,3.50455968]
[1727730490825,0.3866,2614.3,2614.2,5.09274349]
[1727730491121,0.3866,2614.3,2614.2,5.10219666]
[1727730491320,0.3866,2614.3,2614.2,6.99682742]
[1727730491621,0.3866,2614.3,2614.2,5.49452098]
[1727730492415,28.06429768,2622.3,2614.3,0.95651]
[1727730492416,14.3038,2615.2,2614.3,0.95651]
[1727730492614,0.78352,2614.9,2614.8,1.88317331]
[1727730492808,0.78352,2614.9,2614.8,3.04543098]
[1727730493019,0.401,2614.9,2614.8,3.04543098]
[1727730493426,0.401,2614.9,2614.8,4.5443491]
[1727730493817,0.401,2614.9,2614.8,5.7843491]
[1727730494121,0.78351,2614.9,2614.8,5.7843491]
[1727730494322,5.13613,2615.4,2614.8,7.72690098]
[1727730494524,0.38244,2615.4,2615.3,1.24]
[1727730495625,0.38244,2615.4,2615.3,1.62246]
[1727730496220,0.385,2615.5,2615.3,1.24]
[1727730496426,0.385,2615.5,2615.4,1.99874]
[1727730499219,0.76743,2615.5,2615.4,0.3763]
[1727730500427,0.76743,2615.5,2615.4,0.75874]
[1727730500724,0.76743,2615.5,2615.4,0.3763]
[1727730501326,0.385,2615.5,2615.4,3.96654]
[1727730507432,1.24,2615.8,2615.4,4.8241]
[1727730507630,0.75051,2615.7,2615.5,0.38242]
[1727730508028,0.3681,2615.7,2615.6,0.75341]
[1727730508228,0.3681,2615.7,2615.6,0.371]
[1727730508430,0.7505,2615.7,2615.6,0.371]
[1727730508830,0.3681,2615.7,2615.6,0.371]
[1727730509033,0.7505,2615.7,2615.6,0.371]
[1727730509525,0.3681,2615.7,2615.6,0.75341]
[1727730509721,0.3681,2615.7,2615.6,1.99341]
[1727730510530,0.3814,2615.9,2615.8,0.38238]
[1727730510733,0.75146,2616.0,2615.9,0.38237]
[1727730510734,0.7658,2616.0,2615.9,0.38237]
[1727730510935,0.3967,2616.0,2615.9,0.38237]
[1727730511128,0.3967,2616.0,2615.7,4.4478]
[1727730511129,0.3967,2616.0,2615.8,0.4044]
[1727730511328,0.77906,2616.0,2615.8,0.78677]
[1727730511931,0.77906,2616.0,2615.9,0.3058]
[1727730513944,0.77906,2616.0,2615.9,0.68817]
[1727730514436,0.3967,2616.0,2615.9,0.68817]
[1727730514631,0.3967,2616.0,2615.9,1.92817]
[1727730515139,0.3967,2616.0,2615.9,2.32257]
[1727730515441,0.77905,2616.0,2615.9,1.9402]
[1727730515642,0.77905,2616.0,2615.9,0.7002]
[1727730515934,0.77905,2616.0,2615.9,1.08257]
[1727730516153,0.3967,2616.0,2615.9,1.08257]
[1727730516733,0.77905,2616.0,2615.9,1.08257]
[1727730520540,0.77905,2616.0,2615.9,1.45107]
[1727730520729,0.77905,2616.0,2615.9,1.0687]
[1727730522336,0.77905,2616.0,2615.9,1.45107]
[1727730523244,0.77905,2616.0,2615.9,1.0687]
[1727730523439,0.77905,2616.0,2615.9,1.45107]
[1727730524436,0.3967,2616.0,2615.9,1.45107]
[1727730524632,0.38235,2616.1,2616.0,0.38234]
[1727730524633,0.38234,2616.1,2616.0,0.38234]
[1727730524845,1.15323,2616.2,2616.1,0.38234]
[1727730526141,0.7709,2616.2,2616.1,0.38234]
[1727730526339,0.3758,2616.2,2616.1,0.38234]
[1727730527340,0.75812,2616.2,2616.1,0.38234]
[1727730527847,0.38232,2616.3,2616.0,1.24]
[1727730528047,0.38232,2616.3,2616.2,1.62232]
[1727730528439,3.5793,2616.4,2616.2,1.24]
[1727730528643,3.96161,2616.4,2616.3,1.62231]
[1727730529443,3.96161,2616.4,2616.3,2.02211]
[1727730529648,3.96161,2616.4,2616.3,1.9455]
[1727730530551,3.96161,2616.4,2616.3,2.32781]
[1727730530851,3.5793,2616.4,2616.3,2.32781]
[1727730531543,3.9616,2616.4,2616.3,2.32781]
[1727730531743,3.9616,2616.4,2616.3,1.9455]
[1727730540338,3.5793,2616.4,2616.3,2.32781]
[1727730540746,3.5793,2616.4,2616.3,1.08781]
[1727730541147,3.5793,2616.4,2616.3,2.32781]
[1727730541950,3.5793,2616.4,2616.3,1.9455]
[1727730542250,3.9616,2616.4,2616.3,0.3057]
[1727730542449,7.784,2616.4,2616.3,0.3057]
[1727730547758,4.5762,2616.4,2616.3,0.3057]
[1727730547949,7.784,2616.4,2616.3,0.3057]
[1727730554859,9.024,2616.4,2616.3,0.3057]
[1727730556767,3.9616,2616.4,2616.3,1.5457]
[1727730556961,3.5793,2616.4,2616.3,1.5457]
[1727730557564,3.5793,2616.4,2616.3,0.3057]
[1727730558358,3.9616,2616.4,2616.3,0.3057]
[1727730560664,7.784,2616.4,2616.3,0.3057]
[1727730565772,7.89275346,2616.4,2616.3,0.3057]
[1727730573177,4.68495346,2616.4,2616.3,0.3057]
[1727730573481,7.89275346,2616.4,2616.3,0.3057]
[1727730577272,13.89275346,2616.4,2616.3,0.3057]